Cogmind - Beta 15 @@@ ROGUE MODE // 2025.06.20 @ 10:15:16 Player: CL-1C0 Result: Destroyed by G-67 Veteran with Plasma Rifle Performance ------------- Evolutions (7) 3500 Regions Visited (18) 3600 Robots Destroyed (229) 1145 Value Destroyed (10484) 10484 Prototype IDs (24) 480 Alien Tech Used (0) 0 Bonus (7337) 7337 TOTAL SCORE: 26546 Bonus ------- High Alert Combat Kills 2387 Follower Combat Kills 2140 Entered Garrisons 200 Network Hubs Disabled 800 Registered with UFD 300 Met Optimus in HQ 500 Met Zhirov 300 Read Decrypted Archives 300 Scanned by Researcher 500 Friendly Fire -90 Cogmind --------- Core Integrity 0/1300 Matter 295/300 Energy 34/100 System Corruption 0% Temperature Cool (18) Movement Core (100) Ox1 Location -3/Testing Parts ------- > --- POWER (2) -------- (None) > --- PROPULSION (6) --- (None) > --- UTILITY (10) ----- Experimental Signal Interpreter Core Analyzer System Shield Advanced Corruption Screen > --- WEAPON (3) ------- Force Lance > --- INVENTORY (5) ---- Compact Particle Reactor Graphene Brace Peak State ------------ > --- POWER ------------ Compact Particle Reactor Compact Particle Reactor > --- PROPULSION ------- Gyrokinetic Inverter Improved Antigrav System Improved Antigrav System Improved Antigrav System Improved Antigrav System Improved Antigrav System > --- UTILITY ---------- Advanced Heat Sink Experimental Cooling System Makeshift Microdissipator Network Experimental Signal Interpreter Improved Melee Analysis Suite Advanced Target Analyzer Core Analyzer Precision Energy Filter Advanced System Shield Advanced Corruption Screen > --- WEAPON ----------- Gamma Rifle Gamma Rifle Force Lance > --- INVENTORY -------- Particle Reactor Stasis Canceller Graphene Brace Heavy Quantum Rifle Nova Cannon [Rating: 147] Favorites ----------- Power Antimatter Reactor Engine Ion Engine Power Core Micro Fission Core Reactor Antimatter Reactor Propulsion Overtuned Huge Scrapsphere Treads Improved Heavy Treads Leg Carbon-fiber Leg Wheel Overtuned Huge Scrapsphere Hover Unit Improved Antigrav System Flight Unit Impulse Thruster Array Utility Graphene Brace Device Graphene Brace Storage Humpback Processor Experimental Signal Interpreter Hackware Advanced System Shield Protection Improved Medium Armor Plating Weapon Chainsword Energy Gun Overtuned Beamcaster Energy Cannon Matter Neutralizer Ballistic Gun KE Penetrator Ballistic Cannon Magnetic Acceleration Cannon Launcher Heavy Rocket Launcher Special Weapon CPS Tube Impact Weapon Hammer Slashing Weapon Chainsword Piercing Weapon Force Lance Special Melee Weapon Advanced Datajack Build | -11 -10 -10 -9 -6 -5 -5 -5 -5 -5 -5 -5 -4 -4 -4 -4 -4 -3 -3 ------- Run | Yrd Mat Sub Scr Fac Fac Was Fac Gar Fac Upp Upp Fac Ext Cet Arc Hub Res Tes Slots Evolved 14 | . . . . 8 2 . . . . . . 2 . . . . 2 . Power 1 | . . . . . . . . . . . . . . . . . 1 . Propulsion 4 | . . . . 2 1 . . . . . . 1 . . . . . . Utility 8 | . . . . 5 1 . . . . . . 1 . . . . 1 . Weapon 1 | . . . . 1 . . . . . . . . . . . . . . Parts Attached 197 | 4 2 7 5 33 6 7 . 20 7 10 9 26 17 6 . 2 24 12 Power 22 | 1 . 1 . 4 . 1 . . . 2 . 2 4 1 . . 4 2 Engine 6 | 1 . 1 . 4 . . . . . . . . . . . . . . Core 3 | . . . . . . . . . . 1 . 1 1 . . . . . Reactor 13 | . . . . . . 1 . . . 1 . 1 3 1 . . 4 2 Propulsion 45 | 2 . 1 2 7 2 1 . 5 2 1 2 7 3 1 . . 7 2 Treads 22 | 2 . . 1 6 . 1 . 5 2 . . . 3 1 . . 1 . Leg 3 | . . . . . . . . . . 1 . 2 . . . . . . Wheel 10 | . . 1 1 1 2 . . . . . . 5 . . . . . . Hover 9 | . . . . . . . . . . . 2 . . . . . 6 1 Flight 1 | . . . . . . . . . . . . . . . . . . 1 Utility 76 | . . 2 1 12 2 3 . 9 3 4 5 13 8 1 . . 7 6 Device 37 | . . 2 . 8 2 1 . 3 2 4 3 5 2 . . . 2 3 Storage 5 | . . . 1 . . . . 1 . . . 3 . . . . . . Processor 17 | . . . . 2 . . . 1 1 . 1 3 4 . . . 4 1 Hackware 6 | . . . . . . . . . . . 1 2 . . . . 1 2 Protection 11 | . . . . 2 . 2 . 4 . . . . 2 1 . . . . Artifact . | . . . . . . . . . . . . . . . . . . . Weapon 54 | 1 2 3 2 10 2 2 . 6 2 3 2 4 2 3 . 2 6 2 Energy Gun 7 | 1 . . . 1 . . . . . . . 1 . 1 . . 2 1 Energy Cannon 3 | . . . . . . . . . . . . . . . . 1 2 . Ballistic Gun 18 | . 1 3 . 4 . 1 . 3 2 1 . 1 . 1 . 1 . . Ballistic Cannon 7 | . . . . 3 . . . . . 1 . 1 . 1 . . 1 . Launcher 3 | . . . . 1 . . . 1 . . 1 . . . . . . . Special Weapon 9 | . . . 2 1 2 1 . 1 . . . . 1 . . . . 1 Impact Weapon 2 | . 1 . . . . . . . . . 1 . . . . . . . Slashing Weapon 2 | . . . . . . . . 1 . 1 . . . . . . . . Piercing Weapon 2 | . . . . . . . . . . . . . 1 . . . 1 . Special Melee Weapon 1 | . . . . . . . . . . . . 1 . . . . . . Unidentified Prototypes 15 | . . . . 1 . 1 . 1 . . . 3 . 4 . . 1 4 Parts Lost 97 | . . 6 . 7 15 . . 3 8 6 8 2 7 . . 6 9 20 Power 10 | . . 1 . 2 . . . . 1 1 . 1 2 . . . 1 1 Propulsion 21 | . . 3 . 1 1 . . . 3 1 2 . 1 . . . 2 7 Utility 35 | . . . . 2 7 . . 3 1 3 2 1 2 . . 4 3 7 Weapon 31 | . . 2 . 2 7 . . . 3 1 4 . 2 . . 2 3 5 Highest Loss Streak 15 | . . 3 . 2 11 . . 2 7 3 8 1 3 . . 2 3 15 To Critical Strikes 1 | . . 1 . . . . . . . . . . . . . . . . Average Backups 12 | 2 2 2 9 26 9 3 3 16 21 19 16 3 10 8 12 11 6 4 Power . | . . . . . . . . 1 2 . . . . 1 1 1 1 1 Propulsion 1 | 2 1 1 . . . . . 3 3 2 1 . . . . . . . Utility 6 | . . . 4 11 3 . 1 7 11 12 11 1 8 6 8 7 2 1 Weapon 2 | . . 1 1 4 1 . . 2 2 3 2 . 1 1 3 2 2 1 Tool/Special . | . . . . . . . . . . . . . . . . . . . Unused Backups 44 | . 1 . 4 8 7 . . 9 1 . 6 1 1 1 . 1 3 1 Power 5 | . . . . . 1 . . . 1 . . . . 1 . . 1 1 Propulsion 2 | . . . 2 . . . . . . . . . . . . . . . Utility 27 | . 1 . 2 5 4 . . 8 . . 5 1 1 . . . . . Weapon 9 | . . . . 3 2 . . 1 . . . . . . . 1 2 . Tool/Special 1 | . . . . . . . . . . . 1 . . . . . . . Average Slot Usage (%) 64 | . 68 76 34 76 68 71 64 80 79 62 67 75 75 73 73 69 73 86 Engine 1 | . 14 12 . 4 5 3 . . . . . . . . . . . . Reactor 2 | . . . . . . 1 5 5 4 1 . 1 3 5 5 5 6 7 Treads 7 | . 27 7 1 10 9 5 5 17 16 6 4 . 5 5 5 5 6 . Wheel 7 | . . 9 13 7 6 15 11 1 . . . 10 10 10 10 10 4 . Device 13 | . . 17 1 16 15 15 11 16 22 26 29 26 13 10 10 12 18 13 Storage 5 | . . . 11 6 1 . . 4 5 5 4 1 5 3 5 5 3 . Processor 4 | . . . . 6 11 8 5 . . . . 4 16 15 15 6 8 20 Protection 3 | . . . . 1 3 4 5 16 10 . . . 2 6 5 7 3 . Energy Gun 1 | . 10 . . 1 . . . . . . . 4 7 1 5 5 2 5 Ballistic Gun 5 | . 3 25 1 11 . . . 7 9 1 . 2 3 10 10 7 . . Ballistic Cannon 1 | . . . . 4 3 . . . . 2 4 . . 2 . . 3 . Special Weapon 1 | . . . 3 . . 6 11 . . . . . . . . . . . Impact Weapon 1 | . 12 2 1 . . . . . . . . 4 . . . . . . Slashing Weapon 1 | . . . . . . 5 5 4 3 9 8 . . . . . . . Peak Build Rating 147 | 4 5 11 23 71 66 83 83 97 105 94 83 112 113 119 119 128 140 147 Average Rating 63 | 3 4 8 7 64 60 64 83 86 98 79 79 100 103 112 119 123 123 124 On Entrance 71 | 6 4 5 5 23 60 61 83 83 97 78 83 71 112 110 119 119 107 140 Naked Turns . | . . . . . . . . . . . . . . . . . . . Heaviest Build 249 | 7 9 14 202 249 242 72 72 189 192 176 167 55 91 101 96 110 97 50 Greatest Support 185 | 40 40 40 16 36 40 40 30 185 185 162 87 100 70 40 40 40 155 91 Greatest Overweight (x) 12 | . 2 2 12 12 12 2 2 2 1 2 1 1 2 2 2 2 4 3 Average Overweight (x) 2 | . . . 7 9 3 . 2 . . 1 . . 1 1 2 1 . . Largest Inventory Capacity 35 | 5 5 5 35 35 35 5 5 30 30 30 30 15 15 15 15 15 15 5 Average Capacity 21 | 5 5 5 28 35 12 5 5 25 30 30 26 7 15 11 15 15 13 5 Most Carried 35 | 4 3 4 35 35 34 5 5 30 30 28 26 14 15 15 15 15 10 5 Average Carried 16 | 2 2 2 11 34 12 4 5 23 29 26 23 6 14 11 15 13 7 4 Final Capacity 35 | 5 5 5 35 35 5 5 5 30 30 30 5 15 15 15 15 15 5 5 Final Carried 35 | 2 3 2 35 34 5 5 5 29 27 26 5 14 15 15 15 9 3 2 Class Distribution -------------------- 27% | Hauler-Mutant 25% | Scavenger-Mutant 15% | Scavenger-Scrapper 10% | Hauler-Scrapper 10% | Mutant 5% | Scavenger-Tank Dominant Class ---------------- Mutant | -10/Materials Scavenger-Mutant | -10/Subcaves Hauler-Mutant | -9/Scraptown Hauler-Scrapper | -6/Factory Scavenger-Gunner | -5/Factory Scavenger-Mutant | -5/Waste Scavenger-Mutant | -5/Factory Scavenger-Mutant | -5/Garrison Scavenger-Mutant | -5/Factory Hauler-Mutant | -5/Upper Caves Hauler-Mutant | -5/Upper Caves Scavenger-Scrapper | -4/Factory Scavenger-Scrapper | -4/Extension Scavenger-Scrapper | -4/Cetus Scavenger-Scrapper | -4/Archives Scavenger-Scrapper | -4/Hub_04(d) Scavenger-Tank | -3/Research Scavenger-Mutant | -3/Testing Resources | -11 -10 -10 -9 -6 -5 -5 -5 -5 -5 -5 -5 -4 -4 -4 -4 -4 -3 -3 ----------- Run | Yrd Mat Sub Scr Fac Fac Was Fac Gar Fac Upp Upp Fac Ext Cet Arc Hub Res Tes Matter Collected 6021 | 171 61 203 85 1383 390 282 . 467 246 345 262 465 460 224 . 526 377 74 Remotely 241 | . . . . 241 . . . . . . . . . . . . . . Salvage Created 11890 | . 382 141 . 2163 380 . . 942 520 388 207 1725 1597 232 . 1932 1108 173 Parts 494 | . 10 6 . 129 16 . . 44 24 13 8 49 46 10 . 73 59 7 Haulers Intercepted 6 | . . . . 2 . . . . . . . 3 . . . 1 . . Recyclers Shooed 10 | 1 . . . 2 . . . . . . . 2 4 . . 1 . . Parts Field Recycled . | . . . . . . . . . . . . . . . . . . . Retrieved Matter . | . . . . . . . . . . . . . . . . . . . Parts Self-Destructed 26 | . . 8 . . . . . . . 11 7 . . . . . . . Prevented . | . . . . . . . . . . . . . . . . . . . Kills | -11 -10 -10 -9 -6 -5 -5 -5 -5 -5 -5 -5 -4 -4 -4 -4 -4 -3 -3 ------- Run | Yrd Mat Sub Scr Fac Fac Was Fac Gar Fac Upp Upp Fac Ext Cet Arc Hub Res Tes Combat Hostiles Destroyed 156 | . 4 3 . 38 8 . . 10 13 6 6 11 14 4 . 24 15 . Melee 7 | . 1 . . . . . . . . 4 . 1 . . . 1 . . Guns 72 | . . 3 . 22 . . . 4 7 1 . 4 11 3 . 17 . . Cannons 42 | . . . . 11 7 . . . . 1 2 3 . 1 . 3 14 . AOE 25 | . . . . 5 1 . . 6 6 . 4 2 . . . 1 . . Classes Destroyed 22 | . 6 3 . 10 . . . . 1 . . . . . . 2 . . Worker 24 | . 1 . . 13 2 . . . . . . 4 . . . 4 . . Builder 15 | . . . . 3 1 . . . 3 . . 4 1 . . 2 1 . Tunneler 1 | . 1 . . . . . . . . . . . . . . . . . Hauler 6 | . . . . 2 . . . . . . . 3 . . . 1 . . Recycler 14 | . 2 . . 1 1 . . . . . . 4 4 . . . 1 1 Mechanic 2 | . . . . 1 . . . . 1 . . . . . . . . . Operator 3 | . 1 . . . . . . . . . . . . . . . 1 1 Turret 2 | . . 2 . . . . . . . . . . . . . . . . Watcher 6 | . 1 . . 1 1 . . . . . . 1 1 . . 1 . . Swarmer 21 | . . 1 . 5 . . . 3 4 5 2 . 1 . . . . . Saboteur 1 | . . . . . . . . . . . . . . . . 1 . . Grunt 70 | . 4 . . 17 6 . . 4 2 . 2 5 9 . . 18 3 . Brawler 4 | . . . . 1 . . . . 2 . . . 1 . . . . . Duelist 3 | . . . . . . . . . 2 . . . 1 . . . . . Protector 1 | . . . . 1 . . . . . . . . . . . . . . Sentry 18 | . . . . 5 1 . . 2 1 1 1 1 2 . . 2 2 . Specialist 2 | . . . . 2 . . . . . . . . . . . . . . Hunter 11 | . . . . 2 1 . . 1 . . 1 2 . . . . 4 . Programmer 17 | . . . . 4 . . . . 2 . . 3 . . . 2 6 . Heavy 1 | . . . . 1 . . . . . . . . . . . . . . Behemoth 1 | . . . . . . . . . . . . . . . . 1 . . Cetus Guard 4 | . . . . . . . . . . . . . . 4 . . . . Subdweller 2 | . . 2 . . . . . . . . . . . . . . . . Best Kill Streak 17 | . 2 2 . 7 4 . . 5 5 3 6 6 6 4 . 17 6 1 Combat Bots Only 9 | . 1 2 . 6 2 . . 5 5 3 6 4 6 4 . 9 5 . Max Kills in Single Turn 8 | . 1 1 . 4 1 . . 3 3 1 1 4 1 1 . 8 1 1 Gunslinging 1 | . . . . 1 . . . . . . . . . . . . . . Exploded 3 | . . . . 2 1 . . 3 2 . 1 2 . . . 1 . . Melee 1 | . 1 . . . . . . . . 1 . 1 . . . 1 . . Uniques/NPCs Destroyed . | . . . . . . . . . . . . . . . . . . . Combat | -11 -10 -10 -9 -6 -5 -5 -5 -5 -5 -5 -5 -4 -4 -4 -4 -4 -3 -3 -------- Run | Yrd Mat Sub Scr Fac Fac Was Fac Gar Fac Upp Upp Fac Ext Cet Arc Hub Res Tes Hostile Shots Fired 1846 | . 19 92 . 358 89 . . 82 183 64 67 86 183 23 . 247 183 170 Missed 571 | . 5 32 . 125 24 . . 31 56 16 14 24 47 5 . 78 50 64 Hits 1275 | . 14 60 . 233 65 . . 51 127 48 53 62 136 18 . 169 133 106 Melee 36 | . . . . . . . . . 23 . . . 8 . . 1 1 3 Projectile 1239 | . 14 60 . 233 65 . . 51 104 48 53 62 128 18 . 168 132 103 AOE 3 | . 1 . . . . . . 1 . . . . . . . . . 1 Critical Strikes 64 | . . 1 . 3 4 . . . 11 . 2 7 12 3 . 12 5 4 Actively Blocked 32 | . . . . . 1 . . . 11 . 2 7 3 . . 3 5 . Part Disruptions 3 | . . . . 2 . . . . . . . . 1 . . . . . Damage Taken 24326 | . 285 653 . 3363 1341 . . 1148 3056 750 1135 1277 2858 277 . 3349 2518 2316 Core 3443 | . 48 143 . 288 151 . . 50 368 49 271 158 368 33 . 202 306 1008 Absorbed by Shields 109 | . . . . . . . . . . . . . 103 . . 6 . . Ignored by Resistances 536 | . . . . . . . . . . . . . 56 200 . 280 . . Regen/Repaired (Parts) 1404 | . . . . 73 30 350 . 272 229 . . 26 20 26 . 165 213 . Core Remaining (%) 46 | 100 . . 23 66 . . . . . . 11 . . . . 33 . . Volleys Fired 564 | . . 31 . 164 43 . . 25 32 12 21 46 60 17 . 62 47 4 Largest 3 | . . 2 . 3 1 . . 3 3 1 1 3 3 3 . 3 3 2 Hottest 345 | . . 50 . 142 50 . . 99 99 51 51 232 232 118 . 345 272 150 Shots Fired 1022 | . . 57 . 296 43 . . 55 63 13 21 76 112 35 . 164 82 5 Gun 688 | . . 57 . 179 . . . 46 55 12 . 62 110 18 . 140 5 4 Cannon 302 | . . . . 113 40 . . . . 1 15 14 . 17 . 24 77 1 Launcher 22 | . . . . 1 3 . . 4 8 . 6 . . . . . . . Special 10 | . . . . 3 . . . 5 . . . . 2 . . . . . Kinetic 723 | . . 57 . 265 40 . . 46 55 13 15 37 54 35 . 86 20 . Thermal 259 | . . . . 27 . . . . . . . 39 56 . . 78 56 3 Explosive 22 | . . . . 1 3 . . 4 8 . 6 . . . . . . . Electromagnetic 8 | . . . . . . . . . . . . . . . . . 6 2 Robot Hit Streak 29 | . . 12 . 15 13 . . 7 12 4 14 11 29 8 . 14 9 4 Robot Miss Streak 5 | . . 5 . 5 2 . . 3 3 4 2 3 4 1 . 4 4 1 Penetration Max 2 | . . . . 2 . . . . 1 . 1 1 1 1 . 2 . . Secondary Targets 16 | . . 1 . 5 . . . 2 2 . . . 3 . . 3 . . Max Gunslinging Chain 1 | . . 1 . 1 . . . 1 1 . . . 1 . . 1 . . Shots Hit Robots 744 | . 23 30 . 182 37 . . 61 41 15 15 66 101 23 . 99 46 5 Core Hits 426 | 1 5 11 . 124 14 . . 34 37 7 9 28 47 17 . 62 27 3 Critical Kills 14 | . . . . 2 . . . . . 1 2 1 2 1 . 3 2 . Critical Parts Destroyed 23 | . 3 1 . 4 . . . . 4 . 5 2 2 . . 2 . . Critical Strikes 77 | . 3 1 . 12 4 . . 1 4 1 8 12 19 1 . 6 4 1 Burn 21 | . . . . 1 . . . . . . . 8 12 . . . . . Meltdown 3 | . . . . . . . . . . . . . . . . 1 2 . Destroy 31 | . . 1 . 6 . . . . 4 1 8 2 3 1 . 5 . . Blast 11 | . . . . 5 4 . . . . . . 1 . . . . 1 . Smash 5 | . 3 . . . . . . . . . . 1 1 . . . . . Sever 1 | . . . . . . . . 1 . . . . . . . . . . Impale 5 | . . . . . . . . . . . . . 3 . . . 1 1 Melee Attacks 158 | . 29 5 . . 1 . . 36 5 19 . 29 12 . . 5 1 16 Impact 65 | . 29 5 . . . . . . . . . 29 2 . . . . . Slashing 61 | . . . . . 1 . . 36 5 19 . . . . . . . . Piercing 32 | . . . . . . . . . . . . . 10 . . 5 1 16 Sneak Attacks 27 | . 9 . . . 1 . . . . . . 11 4 . . . 1 1 Combat Hostiles . | . . . . . . . . . . . . . . . . . . . Follow-up Attacks . | . . . . . . . . . . . . . . . . . . . Damage Inflicted 31233 | 8 866 451 . 6802 1911 . . 3150 2556 593 906 3121 3096 882 . 4599 1955 337 Guns 13588 | . . 451 . 3500 . . . 734 1176 123 . 1257 2687 555 . 2933 104 68 Cannons 6963 | . . . . 2068 1749 . . . . 14 177 424 . 313 . 421 1797 . Explosions 5886 | . . . . 1234 103 . . 816 1379 . 729 389 . . . 1236 . . Melee 4756 | . 866 . . . 59 . . 1600 . 456 . 1051 401 . . . 54 269 Ramming 40 | 8 . . . . . . . . 1 . . . 8 14 . 9 . . Kinetic 14826 | . . 451 . 5062 1749 . . 734 1176 137 177 970 1431 868 . 1604 467 . Thermal 6387 | . . . . 1074 . . . . 265 . . 711 1256 . . 1750 1263 68 Explosive 3817 | . . . . 666 103 . . 816 1114 . 729 389 . . . . . . Electromagnetic 1407 | . . . . . . . . . . . . . . . . 1236 171 . Impact 2006 | . 866 . . . . . . . . . . 1051 89 . . . . . Slashing 2115 | . . . . . 59 . . 1600 . 456 . . . . . . . . Piercing 635 | . . . . . . . . . . . . . 312 . . . 54 269 Highest Corruption 4 | . 1 1 . 3 . . . 1 4 4 4 4 1 1 1 3 1 . Average Corruption 2 | . 1 1 . 1 . . . 1 3 4 4 2 1 1 1 1 1 . Corruption Purged 5 | . . . . . . . . . . . . 4 . . . . 1 . Corruption Blocked 19 | . . . . . . . . . . . . . . . . . 3 16 Effects 120 | . 7 6 . 30 . . . 11 16 25 7 7 1 2 . 8 . . Message Errors 29 | . 1 1 . 8 . . . 4 4 4 1 3 . . . 3 . . Matter Fused 25 | . . 1 . 8 . . . 2 5 6 2 1 . . . . . . Heat Flow Errors 14 | . 2 1 . . . . . 1 . 7 1 . . 1 . 1 . . Energy Discharges 22 | . 2 1 . 5 . . . 2 3 4 3 1 . . . 1 . . Parts Rejected 6 | . . 2 . 2 . . . . 1 . . . 1 . . . . . Parts Fused 1 | . . . . . . . . . . 1 . . . . . . . . Data Loss (minor) 10 | . 1 . . 3 . . . 1 2 1 . 1 . 1 . . . . Data Loss (major) 6 | . 1 . . 1 . . . 1 . 1 . 1 . . . 1 . . Misfires 4 | . . . . 2 . . . . . 1 . . . . . 1 . . Alerts 1 | . . . . . . . . . 1 . . . . . . . . . Weapon Failures 2 | . . . . 1 . . . . . . . . . . . 1 . . Overload Shots 2 | . . . . . . . . . . . . . . . . 2 . . Overflow Damage 1687 | . 190 . . 196 73 . . 26 81 127 28 598 139 . . 130 99 . Projectiles 207 | . . . . 92 54 . . . . . . 9 . . . 31 21 . Explosions 320 | . . . . 104 . . . 8 81 . 28 . . . . 99 . . Melee 1160 | . 190 . . . 19 . . 18 . 127 . 589 139 . . . 78 . Knockbacks 46 | . 8 . . 18 11 . . . . . 2 5 1 . . . 1 . Impact 13 | . 8 . . . . . . . . . . 4 1 . . . . . Kinetic 32 | . . . . 17 11 . . . . . 2 1 . . . . 1 . Secondary 1 | . . . . 1 . . . . . . . . . . . . . . Self-Inflicted Damage 594 | . . . . 154 116 . . 22 201 . 92 . . . . 9 . . Shots 20 | . . . . 5 6 . . 1 4 . 3 . . . . 1 . . Rammed 16 | 8 . . . . . . . . 2 . . . 2 1 . 2 1 . Targets Rammed 16 | 8 . . . . . . . . 2 . . . 2 1 . 2 1 . Kicked . | . . . . . . . . . . . . . . . . . . . Crushed . | . . . . . . . . . . . . . . . . . . . Highest Temperature 257 | . 220 72 . 257 . . . 65 14 213 189 200 200 200 . 200 200 36 Average Temperature 99 | . 114 53 . 84 . . . 38 7 90 42 121 108 131 . 99 115 7 Received Heat Transfer 4501 | . 99 234 . 957 351 . . 204 525 . 360 219 282 . . 720 297 253 Effects 3 | . . . . 1 . . . . . . . . . 1 . . 1 . Energy Bleed 3 | . . . . 1 . . . . . . . . . 1 . . 1 . Siege Activations 1 | . . . . . . . . . . . . . . . . 1 . . Total Turns 4 | . . . . . . . . . . . . . . . . 4 . . Longest Duration 4 | . . . . . . . . . . . . . . . . 4 . . Martial Activations . | . . . . . . . . . . . . . . . . . . . Shielding Activations . | . . . . . . . . . . . . . . . . . . . Robots Disrupted . | . . . . . . . . . . . . . . . . . . . Combat Hostiles . | . . . . . . . . . . . . . . . . . . . Robots Corrupted 16 | . 7 . . 1 . . . . . . . 6 1 . . 1 . . Combat Hostiles 4 | . 3 . . . . . . . . . . . . . . 1 . . Parts Fried 39 | . 8 . . 2 . . . . . . . 17 3 . . 7 2 . Impact Corruptions 35 | . 13 . . 1 . . . . . . . 19 2 . . . . . Robots Melted 6 | . . . . . . . . . . . . . 3 . . 1 2 . Combat Hostiles 5 | . . . . . . . . . . . . . 3 . . 1 1 . Parts Melted 36 | . . . . 3 . . . . . . . 11 12 . . 5 5 . Heat Transferred 10284 | . . . . 1650 . . . . 150 . . 2050 3350 . . 1937 1110 37 Parts Sabotaged . | . . . . . . . . . . . . . . . . . . . Parts Stolen . | . . . . . . . . . . . . . . . . . . . Parts Stripped . | . . . . . . . . . . . . . . . . . . . Power Chain Reactions 3 | . . . . . . . . . . . . . . . . 3 . . Alert | -11 -10 -10 -9 -6 -5 -5 -5 -5 -5 -5 -5 -4 -4 -4 -4 -4 -3 -3 ------- Run | Yrd Mat Sub Scr Fac Fac Was Fac Gar Fac Upp Upp Fac Ext Cet Arc Hub Res Tes Maximum Alert Level 4 | . . . . 3 2 1 . 4 3 . . 3 3 2 . 4 3 2 Low Security (%) 24 | 100 100 . . 23 . 95 100 7 . . . 34 . . 100 40 . . Level 1 15 | . . . . 46 . 4 . 1 . . . 21 48 . . . . 1 Level 2 27 | . . . . 20 100 . . 2 2 . . 22 36 100 . . 90 98 Level 3 23 | . . . . 10 . . . 41 97 . . 21 14 . . 48 9 . Level 4 8 | . . . . . . . . 47 . . . . . . . 10 . . Level 5 . | . . . . . . . . . . . . . . . . . . . High Security . | . . . . . . . . . . . . . . . . . . . Max Security . | . . . . . . . . . . . . . . . . . . . Peak Influence 1351 | . 45 . . 995 639 202 24 1351 1089 . . 729 789 496 178 1215 764 554 Initial 705 | . . . . . 487 202 . 9 705 . . 58 328 432 178 58 624 425 Average 537 | . 9 . . 353 555 101 12 1034 913 . . 372 494 461 172 600 579 466 Influence Increases 9884 | . 156 135 . 1604 432 . 24 1634 705 185 160 1041 1148 94 . 1505 621 440 Destroy 0b10 Robot/C 4100 | . 80 60 . 760 160 . . 620 260 120 120 420 640 80 . 480 300 . Destroy 0b10 Robot/NC 400 | . 30 . . 110 25 . . 25 20 10 . 80 35 . . 40 15 10 Destroy Leader 714 | . 22 . . 206 52 . . 30 50 10 10 86 74 . . 94 80 . Allied During Kill 965 | . . . . . . . . 616 20 . . 105 224 . . . . . Successful Hack 261 | . 24 . . 56 16 . 24 16 13 . . 12 14 . . 24 14 48 Select Force Hacks 100 | . . . . . . . . . . . . . . . . 100 . . Disable Machine 870 | . . . . 255 60 . . . 135 . . 150 . . . 210 30 30 Anti-Garrison Action 150 | . . . . . . . . 150 . . . . . . . . . . Destroy Structure 1364 | . . . . 172 104 . . 102 192 . . 158 56 14 . 482 62 22 Partial Spotted 60 | . . . . . 15 . . . . . . 15 . . . 15 . 15 Lose Combat Pursuer 900 | . . 75 . 45 . . . 75 15 45 30 15 105 . . 60 120 315 Influence Decreases 9379 | . 156 135 . 609 848 579 10 304 1043 929 329 463 1045 422 278 484 1053 692 Entered New Map 3948 | . . . . . 508 377 . 5 639 373 51 35 343 342 268 110 565 332 Time Decay 3867 | . 156 125 . 484 190 202 10 . 294 486 198 368 392 80 10 314 398 160 Lost Part 895 | . . 10 . 65 150 . . 30 80 60 80 . 70 . . 60 90 200 Lost Ally 669 | . . . . 60 . . . 269 30 10 . 60 240 . . . . . Squads Dispatched 69 | . 2 . . 18 6 . . . 3 . . 13 7 . . 8 7 5 Investigation 23 | . 1 . . 6 1 . . . . . . 5 3 . . 4 3 . Extermination 9 | . . . . 3 . . . . . . . 2 . . . 2 2 . Reinforcement 19 | . 1 . . 4 2 . . . 2 . . 5 2 . . 1 . 2 Assault 9 | . . . . 1 . . . . 1 . . . 2 . . 1 2 2 Garrison 9 | . . . . 4 3 . . . . . . 1 . . . . . 1 Intercept . | . . . . . . . . . . . . . . . . . . . Searches Triggered . | . . . . . . . . . . . . . . . . . . . Construction Impeded 6 | . . . . . 1 . . . 1 . . 2 1 . . 1 . . Haulers Reinforced 2 | . . . . 1 . . . . . . . 1 . . . . . . Active Scanning Responses . | . . . . . . . . . . . . . . . . . . . Cargo Convoy Interrupts . | . . . . . . . . . . . . . . . . . . . Stealth | -11 -10 -10 -9 -6 -5 -5 -5 -5 -5 -5 -5 -4 -4 -4 -4 -4 -3 -3 --------- Run | Yrd Mat Sub Scr Fac Fac Was Fac Gar Fac Upp Upp Fac Ext Cet Arc Hub Res Tes Distress Signals 16 | . 1 . . 2 1 . . . . . . 2 1 1 . 3 3 2 Communications Jammed 7 | . . . . . . . . . . . . 3 4 . . . . . Distress Signals 7 | . . . . . . . . . . . . 3 4 . . . . . Times Spotted 336 | . 12 8 . 51 15 . . 30 25 9 8 28 42 3 . 34 31 40 Peak Tracking Total 20 | . 3 2 . 5 4 . . 7 7 5 5 4 8 5 . 7 11 20 Tactical Retreats 35 | . . 3 . 3 . . . 3 1 2 2 1 7 . . 4 2 7 Traps | -11 -10 -10 -9 -6 -5 -5 -5 -5 -5 -5 -5 -4 -4 -4 -4 -4 -3 -3 ------- Run | Yrd Mat Sub Scr Fac Fac Was Fac Gar Fac Upp Upp Fac Ext Cet Arc Hub Res Tes Traps Triggered 22 | . 5 . . 4 2 . . 3 . . . 4 2 . . 2 . . Indirectly 1 | . . . . . 1 . . . . . . . . . . . . . Trap Hack Attempts . | . . . . . . . . . . . . . . . . . . . Triggered . | . . . . . . . . . . . . . . . . . . . Disarmed 5 | . . . . . . . . . . . . . 5 . . . . . Reprogrammed . | . . . . . . . . . . . . . . . . . . . Reused . | . . . . . . . . . . . . . . . . . . . Traps Extracted . | . . . . . . . . . . . . . . . . . . . Installed . | . . . . . . . . . . . . . . . . . . . Triggered . | . . . . . . . . . . . . . . . . . . . Most Traps Carried 3 | . . . 3 3 3 2 2 2 2 2 2 1 . . . . . . Machines | -11 -10 -10 -9 -6 -5 -5 -5 -5 -5 -5 -5 -4 -4 -4 -4 -4 -3 -3 ---------- Run | Yrd Mat Sub Scr Fac Fac Was Fac Gar Fac Upp Upp Fac Ext Cet Arc Hub Res Tes Machines Disabled 65 | . . 2 . 17 4 . . 1 9 . 4 10 . . . 14 2 2 Max in Single Turn 13 | . . 1 . 6 3 . . . 5 . 2 6 . . . 13 1 1 Garrison Access 2 | . . . . 1 . . . . . . . . . . . 1 . . Network Hub 4 | . . . . . . . . . . . . . . . . 4 . . Machines Repaired . | . . . . . . . . . . . . . . . . . . . Machines Dismantled . | . . . . . . . . . . . . . . . . . . . Machines Sabotaged 2 | . . . . . . . . . . . . . . . . 2 . . Overloaded Fab Kills . | . . . . . . . . . . . . . . . . . . . Hacking | -11 -10 -10 -9 -6 -5 -5 -5 -5 -5 -5 -5 -4 -4 -4 -4 -4 -3 -3 --------- Run | Yrd Mat Sub Scr Fac Fac Was Fac Gar Fac Upp Upp Fac Ext Cet Arc Hub Res Tes Machines Accessed 63 | . 4 1 3 11 2 . 1 2 2 . . 9 7 . 1 7 6 7 Terminals 33 | . 4 . . 1 2 . . 2 2 . . 2 6 . . 6 2 6 Fabricators 6 | . . . . 3 . . . . . . . 2 . . . . . 1 Repair Stations . | . . . . . . . . . . . . . . . . . . . Recycling Units 14 | . . . . 5 . . . . . . . 5 1 . . . 3 . Scanalyzers 1 | . . . . 1 . . . . . . . . . . . . . . Garrison Access 4 | . . . . 1 . . 1 . . . . . . . . 1 1 . Total Hacks 163 | . 10 1 9 20 4 . 2 3 4 . . 13 15 . 25 13 21 23 Successful 86 | . 3 1 9 10 1 . 1 1 3 . . 8 4 . 25 5 8 7 Failed 77 | . 7 . . 10 3 . 1 2 1 . . 5 11 . . 8 13 16 Catastrophic 18 | . . . . 1 1 . . . . . . 1 2 . . 1 6 6 Database Lockouts . | . . . . . . . . . . . . . . . . . . . Manual 69 | . . . . 13 . . . . 2 . . 10 1 . . 11 19 13 Terminals 87 | . 10 . . 2 4 . . 3 4 . . 4 14 . . 12 13 21 Fabricators 9 | . . . . 5 . . . . . . . 2 . . . . . 2 Repair Stations . | . . . . . . . . . . . . . . . . . . . Recycling Units 23 | . . . . 9 . . . . . . . 7 1 . . . 6 . Scanalyzers 3 | . . . . 3 . . . . . . . . . . . . . . Garrison Access 6 | . . . . 1 . . 2 . . . . . . . . 1 2 . Terminal Hacks 57 | . 3 1 9 2 1 . . 1 3 . . 2 3 . 25 . 3 4 Record 29 | . . . 4 . . . . . . . . . . . 25 . . . Part Schematic 1 | . . . . . . . . . . . . . . . . . . 1 Robot Analysis 4 | . . . 4 . . . . . . . . . . . . . . . Prototype ID Bank 1 | . . . . . . . . . 1 . . . . . . . . . Open Door 4 | . . 1 . . . . . . . . . . 2 . . . . 1 Branch Access Points 4 | . . . . . 1 . . . 1 . . 1 . . . . 1 . Machine Index 1 | . . . . . . . . . . . . . . . . . . 1 Terminal Index 2 | . . . . . . . . . . . . . . . . . 1 1 Recycling Unit Index 1 | . . . . . . . . . . . . . . . . . 1 . Disarm Traps 1 | . . . . . . . . . . . . . 1 . . . . . Recall Investigation 1 | . . . . . . . . . . . . 1 . . . . . . Hauler Manifests 1 | . 1 . . . . . . . . . . . . . . . . . Registered Components 1 | . . . . 1 . . . . . . . . . . . . . . Zone Layout 4 | . 2 . . 1 . . . . 1 . . . . . . . . . Security Stations 1 | . . . . . . . . 1 . . . . . . . . . . Proto ID Catalog 1 | . . . 1 . . . . . . . . . . . . . . . Fabricator Hacks . | . . . . . . . . . . . . . . . . . . . Repair Station Hacks . | . . . . . . . . . . . . . . . . . . . Recycling Unit Hacks . | . . . . . . . . . . . . . . . . . . . Scanalyzer 1 | . . . . 1 . . . . . . . . . . . . . . Insert Component 1 | . . . . 1 . . . . . . . . . . . . . . Garrison Access Hacks 3 | . . . . 1 . . 1 . . . . . . . . 1 . . Unlock Access 1 | . . . . . . . 1 . . . . . . . . . . . Seal Access 2 | . . . . 1 . . . . . . . . . . . 1 . . Unauthorized Hacks 25 | . . . . 6 . . . . . . . 6 1 . . 4 5 3 Terminals 8 | . . . . . . . . . . . . . . . . 4 2 2 Botnet 3 | . . . . . . . . . . . . . . . . 1 1 1 Operators 2 | . . . . . . . . . . . . . . . . . 1 1 Sabotage 3 | . . . . . . . . . . . . . . . . 3 . . Fabricators 5 | . . . . 2 . . . . . . . 2 . . . . . 1 Liberate 2 | . . . . 1 . . . . . . . 1 . . . . . . Haulers 3 | . . . . 1 . . . . . . . 1 . . . . . 1 Repair Stations . | . . . . . . . . . . . . . . . . . . . Recycling Units 12 | . . . . 4 . . . . . . . 4 1 . . . 3 . Fedlink 9 | . . . . 4 . . . . . . . 2 . . . . 3 . Scrapoids 3 | . . . . . . . . . . . . 2 1 . . . . . Scanalyzers . | . . . . . . . . . . . . . . . . . . . Garrison Access . | . . . . . . . . . . . . . . . . . . . Data Cores Recovered 1 | . . . . . . . . . . . . . . . . . 1 . Used . | . . . . . . . . . . . . . . . . . . . Hacking Detections 41 | . 4 . . 5 2 . 1 2 2 . . 4 6 . . 5 4 6 Full Trace Events 8 | . 1 . . 1 1 . . 1 . . . 1 2 . . 1 . . Feedback Events . | . . . . . . . . . . . . . . . . . . . Feedback Blocked . | . . . . . . . . . . . . . . . . . . . Robot Schematics Acquired . | . . . . . . . . . . . . . . . . . . . Robots Built . | . . . . . . . . . . . . . . . . . . . Authchips . | . . . . . . . . . . . . . . . . . . . Time . | . . . . . . . . . . . . . . . . . . . Total Robot Build Rating . | . . . . . . . . . . . . . . . . . . . Part Schematics Acquired 1 | . . . . . . . . . . . . . . . . . . 1 Parts Built . | . . . . . . . . . . . . . . . . . . . Authchips . | . . . . . . . . . . . . . . . . . . . Time . | . . . . . . . . . . . . . . . . . . . Total Part Build Rating . | . . . . . . . . . . . . . . . . . . . Parts Repaired . | . . . . . . . . . . . . . . . . . . . Time . | . . . . . . . . . . . . . . . . . . . Parts Recycled . | . . . . . . . . . . . . . . . . . . . Recycled Matter . | . . . . . . . . . . . . . . . . . . . Retrieved Matter . | . . . . . . . . . . . . . . . . . . . Retrieved Components . | . . . . . . . . . . . . . . . . . . . Parts Scanalyzed 1 | . . . . 1 . . . . . . . . . . . . . . Part Schematics Acquired . | . . . . . . . . . . . . . . . . . . . Parts Damaged 1 | . . . . 1 . . . . . . . . . . . . . . Bothacking | -11 -10 -10 -9 -6 -5 -5 -5 -5 -5 -5 -5 -4 -4 -4 -4 -4 -3 -3 ------------ Run | Yrd Mat Sub Scr Fac Fac Was Fac Gar Fac Upp Upp Fac Ext Cet Arc Hub Res Tes Used RIF Installer . | . . . . . . . . . . . . . . . . . . . Robots Hacked . | . . . . . . . . . . . . . . . . . . . Non-combat . | . . . . . . . . . . . . . . . . . . . Combat . | . . . . . . . . . . . . . . . . . . . Robot Hacks Applied . | . . . . . . . . . . . . . . . . . . . Relay Couplers Released 4 | . . . . 4 . . . . . . . . . . . . . . Programmers 4 | . . . . 4 . . . . . . . . . . . . . . Fabnet Peak Effective % . | . . . . . . . . . . . . . . . . . . . Robots Rewired 3 | . . . . . . . . . . . . . 3 . . . . . Allies Hacked 3 | . . . . . . . . . 2 . . 1 . . . . . . Hacks Repelled . | . . . . . . . . . . . . . . . . . . . Allies | -11 -10 -10 -9 -6 -5 -5 -5 -5 -5 -5 -5 -4 -4 -4 -4 -4 -3 -3 -------- Run | Yrd Mat Sub Scr Fac Fac Was Fac Gar Fac Upp Upp Fac Ext Cet Arc Hub Res Tes Total Allies 46 | . . . . 3 . 20 . . . . . 13 10 . . . . . Largest Group 20 | . . . . 3 . 20 20 19 2 . . 5 9 . . . . . Highest-Rated Group 775 | . . . . 87 . 775 775 729 68 . . 235 412 . . . . . Highest-Rated Ally 159 | . . . . 29 . 46 46 47 47 . . 47 159 . . . . . Total Orders 1 | . . . . . . . . . . 1 . . . . . . . . EXPLORE 1 | . . . . . . . . . . 1 . . . . . . . . Ally Attacks 413 | . . . . 14 . . . 182 7 . . 76 134 . . . . . Total Damage 9750 | . . . . 188 . . . 3808 163 . . 1827 3764 . . . . . Kills 53 | . . . . 1 . . . 21 . . . 12 19 . . . . . Allies Corrupted 6 | . . . . . . . . . . . . 5 1 . . . . . Allies Melted 2 | . . . . . . . . . . . . . 2 . . . . . Intel | -11 -10 -10 -9 -6 -5 -5 -5 -5 -5 -5 -5 -4 -4 -4 -4 -4 -3 -3 ------- Run | Yrd Mat Sub Scr Fac Fac Was Fac Gar Fac Upp Upp Fac Ext Cet Arc Hub Res Tes Active Infowar (turns) 2204 | . . 499 27 . . . . . 156 20 26 354 76 . . 242 804 . Optics 526 | . . 499 27 . . . . . . . . . . . . . . . Sensors 1379 | . . . . . . . . . . . . 268 65 . . 242 804 . T.N.C. 67 | . . . . . . . . . 67 . . . . . . . . . Jamming 298 | . . . . . . . . . 89 20 26 132 31 . . . . . Robot Analysis Total 4 | . . . 4 . . . . . . . . . . . . . . . Derelict Logs Recovered 6 | . . 1 2 . . . . . . 2 1 . . . . . . . Drone Launches 3 | . . . . . . . . . . 3 . . . . . . . . Drone Recoveries 2 | . . . . . . . . . . 2 . . . . . . . . Exploration | -11 -10 -10 -9 -6 -5 -5 -5 -5 -5 -5 -5 -4 -4 -4 -4 -4 -3 -3 ------------- Run | Yrd Mat Sub Scr Fac Fac Was Fac Gar Fac Upp Upp Fac Ext Cet Arc Hub Res Tes Turns Passed 16137 | 56 631 723 3816 1951 384 420 49 1672 646 1263 402 887 920 172 39 810 958 338 Spaces Moved 8921 | 25 322 470 1837 816 226 419 20 735 250 475 176 691 709 111 44 451 624 520 Core 20 | . 1 4 3 . . . . . . . . . . . . . . 12 Treads 2269 | 25 321 87 . . . . . 639 250 475 127 . 11 . . . 334 . Legs 30 | . . . . . . . . . . . . 30 . . . . . . Wheels 5661 | . . 379 1834 816 226 419 20 96 . . . 454 698 111 44 451 113 . Hover 941 | . . . . . . . . . . . 49 207 . . . . 177 508 Flight . | . . . . . . . . . . . . . . . . . . . Fastest Speed 41 | 160 150 110 100 145 87 75 99 87 160 160 77 70 70 80 90 80 44 41 Average Speed 146 | 160 159 119 205 174 107 87 99 194 207 241 194 78 82 89 90 88 122 47 Slowest Speed 320 | 160 160 160 280 190 190 99 99 240 240 320 240 140 240 90 90 90 240 100 Overloaded Moves . | . . . . . . . . . . . . . . . . . . . Propulsion Burnouts . | . . . . . . . . . . . . . . . . . . . Robots Hopped . | . . . . . . . . . . . . . . . . . . . Potential Cave-ins 2 | . . . . 2 . . . . . . . . . . . . . . Cave-ins Triggered 1 | . . 1 . . . . . . . . . . . . . . . . Exploration Rate (%) 43 | 3 76 26 89 27 4 95 1 71 14 63 29 19 74 47 64 47 21 65 Regions Visited 18 Branch Regions 9 Pre-discovered Areas 4 | . . 1 1 1 . . . . . 1 . . . . . . . . Known Exits Taken 9 | . . . . 1 . . 1 . 1 . . 1 1 1 1 1 1 . Unknown Exits Taken 6 | 1 1 1 1 . . . . . . 1 1 . . . . . . . Scrap Searched 5 | . . . 2 . . . . . . 3 . . . . . . . . Spaces Dug 133 | . . 3 . 37 . . . 3 42 3 . 12 2 2 . 10 8 11 Terrain Destroyed 968 | . . 3 . 219 62 . . 28 105 4 51 91 22 7 . 334 31 11 Melee 38 | . . 3 . . . . . 1 4 3 . 10 2 . . 5 . 10 Projectile 240 | . . . . 105 12 . . . 7 1 . 21 19 7 . 36 31 1 AOE 689 | . . . . 114 50 . . 27 94 . 51 60 . . . 293 . . Terrain Rammed . | . . . . . . . . . . . . . . . . . . . Walls Destroyed . | . . . . . . . . . . . . . . . . . . . Machines Disabled . | . . . . . . . . . . . . . . . . . . . Actions | -11 -10 -10 -9 -6 -5 -5 -5 -5 -5 -5 -5 -4 -4 -4 -4 -4 -3 -3 --------- Run | Yrd Mat Sub Scr Fac Fac Was Fac Gar Fac Upp Upp Fac Ext Cet Arc Hub Res Tes Total 10895 | 36 385 562 1886 1137 298 475 49 886 312 554 210 942 934 154 43 724 739 569 Wait 584 | . 22 48 . 70 11 35 29 1 3 35 1 107 42 . . 160 20 . Move 8904 | 24 321 469 1836 815 226 418 20 733 249 474 175 690 708 110 43 450 623 520 Hop . | . . . . . . . . . . . . . . . . . . . Pick Up 151 | . 3 . 37 23 5 1 . 32 7 2 2 9 8 10 . 5 5 2 Fast Attach 141 | 1 7 4 1 17 7 6 . 16 1 6 5 26 11 6 . 1 16 10 Attach 64 | 3 . 2 4 11 1 1 . 3 6 4 4 . 3 . . 8 11 3 Detach 17 | . . . . . . 1 . 3 . 1 . 1 1 1 . 3 5 1 Swap 46 | . . 3 . 10 . . . 7 3 1 1 4 8 1 . 7 . 1 Drop 149 | . 3 . 8 27 4 9 . 22 4 1 1 24 15 8 . 5 10 8 Fire 564 | . . 31 . 164 43 . . 25 32 12 21 46 60 17 . 62 47 4 Melee 157 | . 29 5 . . 1 . . 36 5 18 . 29 12 . . 5 1 16 Ram . | . . . . . . . . . . . . . . . . . . . Kick . | . . . . . . . . . . . . . . . . . . . Crush 16 | 8 . . . . . . . . 2 . . . 2 1 . 2 1 . Escape Stasis 48 | . . . . . . . . 8 . . . 6 16 . . 16 . 2 Rewire 52 | . . . . . . 4 . . . . . . 48 . . . . . Trap . | . . . . . . . . . . . . . . . . . . . Miscellaneous 2 | . . . . . . . . . . . . . . . . . . 2 Route ------- -11/Scrapyard -10/Materials (discovered 5 exits: [*Mat x2] / [*Min x2] / *Sub) -10/Subcaves (discovered 3 exits: [*Mat] / [*Rec] / *Scr) -9/Scraptown -6/Factory (discovered 2 exits: *Fac x2) -5/Factory (discovered 2 exits: Upp x2) -5/Waste -5/Factory -5/Garrison (discovered 2 exits: *Fac x2) -5/Factory (discovered 2 exits: *Upp x2) -5/Upper Caves -5/Upper Caves -4/Factory (discovered 5 exits: *Res / Upp x2 / *Ext x2) -4/Extension (discovered 2 exits: *Res / *Cet) -4/Cetus -4/Archives -4/Hub_04(d) (discovered 2 exits: *Res x2) -3/Research (discovered 3 exits: Arm / *Tes x2) -3/Testing History --------- Turn | Location | Event 1 | -11/Scrapyard | Released all parts (6) 4 | -11/Scrapyard | Discovered new exit (range 3) 57 | -11/Scrapyard | Entered Materials 57 | -10/Materials | Discovered new exit (range 7) 315 | -10/Materials | Build established: Mutant 392 | -10/Materials | Discovered new exit (range 13) 496 | -10/Materials | Discovered new exit (range 12) 595 | -10/Materials | Discovered new exit (range 14) 657 | -10/Materials | Derelicts attacked the area 677 | -10/Materials | Discovered new exit (range 5) 688 | -10/Materials | Entered Subcaves 689 | -10/Subcaves | Approached by a straggling Scientist 692 | -10/Subcaves | Learned location of Mines (-10) 923 | -10/Subcaves | Lost 3 parts (2n1w) 996 | -10/Subcaves | Discovered new exit (range 15) 1008 | -10/Subcaves | Core integrity fell below 50% 1071 | -10/Subcaves | Discovered new exit (range 7) 1082 | -10/Subcaves | A swath of the cavern ceiling suddenly collapsed 1145 | -10/Subcaves | Scientist uncovered a shortcut to Scraptown 1186 | -10/Subcaves | Build established: Scavenger-Mutant 1390 | -10/Subcaves | Crushed by falling debris 1411 | -10/Subcaves | Entered Scraptown 1411 | -9/Scraptown | System corruption cleaned by C-Scrubber 1483 | -9/Scraptown | Visited UFD Registry 1483 | -9/Scraptown | Registered with UFD as "Rustmod" 1550 | -9/Scraptown | Visited Fellowship of the Rings 1582 | -9/Scraptown | Visited CPS Storage 1602 | -9/Scraptown | Visited Cave Peace 1616 | -9/Scraptown | Visited Artisan Demo Area 1646 | -9/Scraptown | Build established: Mutant 1665 | -9/Scraptown | Visited Shadow of the Wyrm 1675 | -9/Scraptown | Visited SPCMW 1694 | -9/Scraptown | Visited Comm Corps 1774 | -9/Scraptown | Scanned Subdweller tech in exchange for log data 1777 | -9/Scraptown | Learned 12 Factory zone layouts 1997 | -9/Scraptown | Visited LU-1G1's Boring Crew 2035 | -9/Scraptown | Visited Observation Area 2074 | -9/Scraptown | Visited Research Penetration Think Tank 2292 | -9/Scraptown | Visited Derelict Rescue Squad 2312 | -9/Scraptown | Found DRS Beacon 2363 | -9/Scraptown | Visited Abandonware Association 2403 | -9/Scraptown | Learned abandonware demo "REBOOT5.EXE" 2403 | -9/Scraptown | Learned abandonware demo "KABOOM.EXE" 2453 | -9/Scraptown | Visited Analyses Database 2466 | -9/Scraptown | Build established: Hauler-Mutant 2515 | -9/Scraptown | Visited Scrap Suit Storage 2604 | -9/Scraptown | Visited Science Guys 2699 | -9/Scraptown | Visited Modified Component R&D 2937 | -9/Scraptown | Discovered new exit (range 5) 3615 | -9/Scraptown | Learned location of Extension (-4) 4480 | -9/Scraptown | Found Scrap Suit 4487 | -9/Scraptown | Found Scrap Suit 4500 | -9/Scraptown | Found Scrap Suit 4516 | -9/Scraptown | Found Scrap Suit 5084 | -9/Scraptown | Met Optimus 5084 | -9/Scraptown | Accepted into 0bPrime 5227 | -9/Scraptown | Entered Factory 5227 | -6/Factory | Evolved 8 slots: Propulsion x2, Utility x5, Weapon x1 5228 | -6/Factory | Identified exit to Factory 5414 | -6/Factory | Loaded intel: 8 recycling unit locations 5534 | -6/Factory | Build established: Hauler-Scrapper 5734 | -6/Factory | Learned location of Protoforge (-2) 5795 | -6/Factory | Garrison activated, responded to threat 6371 | -6/Factory | Found Prototype Launcher 6579 | -6/Factory | Noticed a derelict Sapper rigging charges 6965 | -6/Factory | Discovered exit to Factory (range 5) 6977 | -6/Factory | First assault squad dispatched 7174 | -6/Factory | Identified Rocket Array 7178 | -6/Factory | Entered another Factory area 7178 | -5/Factory | Evolved 2 slots: Propulsion x1, Utility x1 7224 | -5/Factory | Identified exit to Upper Caves 7276 | -5/Factory | Garrison activated, responded to threat 7305 | -5/Factory | Lost 11 parts (7u4w) 7562 | -5/Factory | Sucked down chute 7562 | -5/Factory | Entered Waste 7563 | -5/Waste | Joined by Warlord forces that had cleared the area 7622 | -5/Waste | Discovered new exit (range 16) 7765 | -5/Waste | Build established: Scavenger-Mutant 7786 | -5/Waste | Found Prototype Device 7786 | -5/Waste | Identified Exp. EM Disruption Field 7901 | -5/Waste | Found Damper Plating 7982 | -5/Waste | Entered Factory 7982 | -5/Factory | Accompanied by 20 allies 8002 | -5/Factory | Identified exit to Garrison 8031 | -5/Factory | Entered Garrison 8031 | -5/Garrison | Accompanied by 19 allies 8084 | -5/Garrison | Lost 5 allies 8174 | -5/Garrison | Learned Factory security intel 8191 | -5/Garrison | Triggered checkpoint 8192 | -5/Garrison | Triggered checkpoint 8193 | -5/Garrison | Triggered checkpoint 8227 | -5/Garrison | Triggered checkpoint 8265 | -5/Garrison | Lost 4 allies 8296 | -5/Garrison | Discovered new exit (range 8) 8513 | -5/Garrison | Triggered checkpoint 8853 | -5/Garrison | Triggered checkpoint 9100 | -5/Garrison | Attempted to access garrison exit controls, blocked by remote lockdown 9223 | -5/Garrison | Discovered new exit (range 15) 9567 | -5/Garrison | Triggered checkpoint 9634 | -5/Garrison | Lost 3 allies 9703 | -5/Garrison | Entered Factory 9703 | -5/Factory | Accompanied by 2 allies 10003 | -5/Factory | First assault squad dispatched 10298 | -5/Factory | Core integrity fell below 50% 10349 | -5/Factory | Entered Upper Caves 10362 | -5/Upper Caves | Lost 7 parts (1p3n1u2w) 10603 | -5/Upper Caves | Learned location of Armory (-3) 10692 | -5/Upper Caves | Lost 3 parts (1n1u1w) 10858 | -5/Upper Caves | Lost 3 parts (1p2u) 10933 | -5/Upper Caves | Attracted the attention of an 0b10 checkpoint 10966 | -5/Upper Caves | Build established: Hauler-Mutant 11168 | -5/Upper Caves | Discovered new exit (range 18) 11176 | -5/Upper Caves | Encountered a Warlord checkpoint 11233 | -5/Upper Caves | Learned Factory interactive machine intel 11535 | -5/Upper Caves | Spotted B-75 Beast 11612 | -5/Upper Caves | Entered another Upper Caves area 11639 | -5/Upper Caves | Discovered new exit (range 8) 11932 | -5/Upper Caves | Attracted the attention of an 0b10 base 11960 | -5/Upper Caves | Core integrity fell below 20% 12001 | -5/Upper Caves | Learned 4 Factory zone layouts 12012 | -5/Upper Caves | Lost 8 parts (2n2u4w) 12014 | -5/Upper Caves | Entered Factory 12014 | -4/Factory | Evolved 2 slots: Propulsion x1, Utility x1 12015 | -4/Factory | Identified exit to Extension 12017 | -4/Factory | Loaded intel: 55 interactive machine locations 12038 | -4/Factory | Identified exit to Upper Caves 12103 | -4/Factory | Found Prototype Processor 12103 | -4/Factory | Identified Exp. Signal Interpreter 12106 | -4/Factory | Found Exp. Signal Interpreter 12275 | -4/Factory | Garrison activated, responded to threat 12307 | -4/Factory | Scrapoids reinforcements arrived? 12330 | -4/Factory | Found Scrap Suit 12453 | -4/Factory | Lost 3 allies 12565 | -4/Factory | Discovered new exit (range 16) 12573 | -4/Factory | Loaded intel: 8 recycling unit locations 12640 | -4/Factory | Found Unknown Protection 12666 | -4/Factory | Scrapoids reinforcements arrived? 12699 | -4/Factory | Build established: Scavenger-Scrapper 12713 | -4/Factory | Lost 5 allies 12811 | -4/Factory | Found Exp. Signal Interpreter 12901 | -4/Factory | Entered Extension 12901 | -4/Extension | Accompanied by 3 allies 13030 | -4/Extension | Lost 3 parts (1p1u1w) 13299 | -4/Extension | Scrapoid reinforcements arrived 13306 | -4/Extension | Spotted B-86 Titan 13345 | -4/Extension | Found Scrap Suit 13359 | -4/Extension | Spotted B-86 Titan 13364 | -4/Extension | Allies destroyed B-86 Titan 13401 | -4/Extension | First assault squad dispatched 13412 | -4/Extension | Rescued a captive Derelict 13414 | -4/Extension | Rescued a captive Derelict 13447 | -4/Extension | Lost 8 allies 13492 | -4/Extension | Rescued A7 13605 | -4/Extension | Extracted ID and sensor layout for unrecognized location from A7's data core 13622 | -4/Extension | Found Prototype Protection 13697 | -4/Extension | Identified Hvy. Reactive Plating 13805 | -4/Extension | Discovered new exit (range 10) 13806 | -4/Extension | Discovered new exit (range 6) 13813 | -4/Extension | Identified exit to Research 13818 | -4/Extension | Identified exit to Cetus 13821 | -4/Extension | Entered Cetus 13832 | -4/Cetus | Identified Med. Regenerative Plating 13856 | -4/Cetus | Spotted Cetus Guard 13858 | -4/Cetus | Destroyed Cetus Guard 13868 | -4/Cetus | Destroyed Cetus Guard 13874 | -4/Cetus | Spotted Cetus Guard 13878 | -4/Cetus | Destroyed Cetus Guard 13881 | -4/Cetus | Destroyed Cetus Guard 13979 | -4/Cetus | Discovered new exit (range 16) 13992 | -4/Cetus | Identified exit to Archives 13993 | -4/Cetus | Entered Archives 14008 | -4/Archives | Met Zhirov 14014 | -4/Archives | Reinforcements dispatched to Archives 14018 | -4/Archives | Read partially decrypted archive contents 14020 | -4/Archives | Discovered new exit (range 15) 14031 | -4/Archives | Identified exit to Hub_04(d) 14032 | -4/Archives | Entered Hub_04(d) 14057 | -4/Hub_04(d) | Spotted B-86 Titan 14074 | -4/Hub_04(d) | Destroyed B-86 Titan 14349 | -4/Hub_04(d) | Discovered exit to Research (range 4) 14354 | -4/Hub_04(d) | Core integrity fell below 50% 14363 | -4/Hub_04(d) | Network Hub disabled 14363 | -4/Hub_04(d) | Network Hub disabled 14437 | -4/Hub_04(d) | Destroyed 9 combat bots 14532 | -4/Hub_04(d) | First assault squad dispatched 14697 | -4/Hub_04(d) | Discovered exit to Research (range 9) 14750 | -4/Hub_04(d) | Network Hub disabled 14827 | -4/Hub_04(d) | Network Hub disabled 14842 | -4/Hub_04(d) | Entered Research 14842 | -3/Research | Evolved 2 slots: Power x1, Utility x1 14848 | -3/Research | Identified exit to Armory 14848 | -3/Research | Identified exit to Testing 15194 | -3/Research | Build established: Scavenger-Tank 15265 | -3/Research | Loaded intel: 5 recycling unit locations 15289 | -3/Research | Spotted B-86 Titan 15592 | -3/Research | First assault squad dispatched 15775 | -3/Research | Lost 3 parts (1n2u) 15800 | -3/Research | Entered Testing 15926 | -3/Testing | Build established: Scavenger-Mutant 15963 | -3/Testing | Spotted Striker 16038 | -3/Testing | Lost 5 parts (3n1u1w) 16050 | -3/Testing | First assault squad dispatched 16106 | -3/Testing | Core integrity fell below 50% 16110 | -3/Testing | Protovariant out of control (PH-CJGUXBK4PJ) 16124 | -3/Testing | Spotted Investigator 16125 | -3/Testing | Garrison activated, responded to threat 16128 | -3/Testing | Scanned by Researcher 16134 | -3/Testing | Core integrity fell below 20% 16138 | -3/Testing | Destroyed by G-67 Veteran with Plasma Rifle Last Messages --------------- 16131_ Investigator is analyzing... 16132_ Adv. System Shield destroyed. 16132_ W-44 Eye stasis bubble strength at 170. 16132_ Adv. Corruption Screen intercepted 1% system corruption. 16132_ Hacking Suite destroyed. 16133_ Adv. Corruption Screen intercepted 1% system corruption. 16134_ Held in stasis. 16134_ Investigator is analyzing... 16135_ Adv. Corruption Screen intercepted 1% system corruption. 16135_ W-44 Eye stasis bubble strength at 160. 16135_ Hvy. Quantum Rifle destroyed. 16135_ Critical hit (Burn: +37). 16135_ Adv. Corruption Screen intercepted 1% system corruption. 16136_ W-44 Eye stasis bubble strength at 150. 16136_ Adv. Corruption Screen intercepted 1% system corruption. 16137_ Gamma Rifle destroyed. 16137_ Adv. Corruption Screen intercepted 1% system corruption. 16137_ Held in stasis. 16137_ Investigator is analyzing... 16138_ Adv. Corruption Screen intercepted 1% system corruption. Map ----- +----------------------------------------------------+ | ?????????????????????????????????????????????????? | | ?????????????????????????????????????????????????? | | ?????????????????????????????????????????????????? | | ?????????????????????????????????????????????????? | | ?????????????????????????????????????????????????? | | ?????????????????????????????????????????????????? | | ?????????????????????????????????????????????????? | | ?????????????????????????????????????????????????? | | ?????????????????????????????????????????????????? | | ?????????????????????????????????????????????????? | | ?????????????????????????????????????????????????? | | ?????????????????????????##+##???????????????????? | | ????????????????????????? +???????????????????? | | ????????????????????????? #???????????????????? | | ????????????????????????? #???????????????????? | | ????????????????????????? +???????????????????? | | ????????????????????????? #???????????????????? | | ????????????????????????# #???????????????????? | | ????????????????????????# #???????????????????? | | ????????????????????????# ##??????????????????? | | ????????????????????????+ ???????????????????? | | ????????????????????????# #???????????????????? | | ????????????????????????+ #???????????????????? | | ????????????????????????# #???????????????????? | | ????????????????????????# g%#???????????????????? | | ????????????????????????#@ g #???????????????????? | | ????????????????????????#l g #???????????????????? | | ???????????????########## c#???????????????????? | | ???????????????# # i #???????????????????? | | ???????????????# + #???????????????????? | | ???????????????# # #???????????????????? | | ???????????????# """ # #???????????????????? | | ???????????????# """?#p #???????????????????? | | ???????????????# ""?# #????####???????????? | | ####???????????# F"??# #?? """ ????????????? | | #???????????? ""??# p# ""T"" #??????????? | | " #????????????? ?????# pp + "" "" ???????????? | | " #????????????????????# # #??????????? | | #????????????????????# #?? #??????????? | | ##????????????????????# pw#? """ #??????????? | | #?????????????????????# #? """ #??????????? | | #?????????????????????# # "???????????????? | | #?????????????????????# # ?????????????????? | | #??#####??????????????# "#############??????? | | #??""""#??????????????# # ?##? | | #? ""#??????????????# = # """ """??????#"# | | #? ????????????????# %! # """ """???????# | | # "???????????????? ! # """ """ ""????# | | # "??????????????? # #?# | | / ""#??????????? """"" # """ """ ""????# | +----------------------------------------------------+ Best States ------------- Heat Dissipation 103 Coolant Potential 50 Energy Generation 43 Energy Capacity 590 Matter Stores 300 Matter Capacity 300 Sight Range 21 Robot Scan Range 16 Terrain Scan Density 10 Jamming Range 14 Additional Mass Support 20 Corruption Block 20 Armor Coverage 1600 Resistance: KI 40 Resistance: EM 90 Evasion (%) 56 Targeting Accuracy 24 Melee Accuracy 6 Launcher Accuracy 30 Target Analysis 12 Core Analysis 6 Recoil Reduction 5 Matter Filtering 30 Energy Filtering 50 Salvage Targeting 4 Offensive Hacking 22 Defensive Hacking 24 Item Schematics ----------------- Lgt. Regenerative Plating | -3/Testing | Hacked Robot Schematics ------------------ None Fabricated ------------ Nothing Repaired ---------- Nothing Alien Tech Used ----------------- None Achievements -------------- 404 Challenges ------------ None Game ------ Seed AntigravAssembledUnit Manual? 0 Play Time 02:56:05 Cumulative 548.1 hours Start 2025.06.20 @ 02:25:55 End 2025.06.20 @ 10:15:16 Sessions 3 Manual Loads 0 Difficulty Rogue Special Mode None Game No. 661 Rogue 661 Adventurer 0 Explorer 0 Win Type - Total 20 Types 14/0/5/1/0/0/0/0/0/0 Lore% 84 Gallery% 83 Achievement% 83 Wizard Run 0 Options --------- Layout 0 ASCII 0 Keyboard 0 Movement Numpad Keybinds 0 Fullscreen 1 Font 18/SmallcapsGlow Map View 76x50 Zoom Use 0% Tactical HUD 1 Map Filters NONE Filters NONE Steam 1 RUN: 78a06306-3e13-44ec-86fe-c83dad937aaa